bitfinex/quotes_BTCUSD_20220303
["timestamp","ask_amount","ask_price","bid_price","bid_amount"]
[1646298720664,0.00016953,43360.0,43357.0,0.5]
[1646298721264,0.00016953,43360.0,43359.0,0.057696]
[1646298721463,0.12058987,43364.0,43359.0,0.557696]
[1646298721663,0.00016953,43361.0,43359.0,0.557696]
[1646298722062,0.030028,43360.0,43359.0,0.557696]
[1646298722464,0.00016953,43361.0,43359.0,0.557696]
[1646298722664,0.12058987,43364.0,43359.0,0.557696]
[1646298722665,0.030028,43360.0,43359.0,0.557696]
[1646298722865,0.25726939,43360.0,43359.0,0.5]
[1646298725135,0.25726939,43360.0,43352.0,0.057709]
[1646298725136,0.26026939,43360.0,43352.0,0.057709]
[1646298725334,0.057711,43358.0,43353.0,0.5]
[1646298726537,0.05788053,43358.0,43353.0,0.5]
[1646298727174,0.00516953,43358.0,43353.0,0.5]
[1646298727376,0.005,43358.0,43353.0,0.5]
[1646298727576,0.00516953,43358.0,43354.0,0.115402]
[1646298728376,0.00016953,43358.0,43354.0,0.115402]
[1646298728576,0.01153,43368.0,43354.0,0.115402]
[1646298728778,0.22513301,43364.0,43354.0,0.115402]
[1646298728984,0.00016953,43358.0,43354.0,0.115402]
[1646298729178,0.00516953,43358.0,43354.0,0.115402]
[1646298729377,0.00516953,43358.0,43357.0,0.01473188]
[1646298729581,0.03519753,43358.0,43354.0,0.115402]
[1646298729778,0.005,43358.0,43354.0,0.115402]
[1646298730379,0.00016953,43360.0,43354.0,0.115402]
[1646298730733,0.00016953,43360.0,43356.0,0.5]
[1646298731132,0.01153,43363.0,43356.0,0.5]
[1646298731332,0.00016953,43360.0,43356.0,0.5]
[1646298731535,0.00016953,43360.0,43357.0,0.11538259]
[1646298732134,0.00016953,43360.0,43357.0,0.057697]
[1646298732331,0.01153,43363.0,43357.0,0.557697]
[1646298732730,0.00016953,43361.0,43357.0,0.557697]
[1646298733531,0.006,43363.0,43357.0,0.557697]
[1646298733730,0.00016952,43361.0,43358.0,0.22401638]
[1646298733931,0.00016952,43361.0,43357.0,0.557697]
[1646298734567,0.2681048,43365.0,43357.0,0.557697]
[1646298734763,0.00015509,43361.0,43357.0,0.557697]
[1646298735163,0.00515509,43361.0,43357.0,0.557697]
[1646298735864,0.005,43361.0,43357.0,0.557697]
[1646298736065,0.00515509,43361.0,43357.0,0.557697]
[1646298736266,0.030028,43360.0,43357.0,0.557697]
[1646298737065,0.035028,43360.0,43357.0,0.557697]
[1646298737266,0.005,43360.0,43357.0,0.557697]
[1646298737970,0.030028,43359.0,43357.0,0.5]
[1646298738235,0.030028,43359.0,43357.0,0.48994292]
[1646298738739,0.030028,43360.0,43357.0,0.48994292]
[1646298739738,0.030028,43360.0,43358.0,0.057697]
[1646298740636,0.030028,43360.0,43358.0,0.05758379]
[1646298741639,0.030028,43360.0,43357.0,0.48994292]
[1646298743376,0.030028,43360.0,43358.0,0.0577]
[1646298743579,0.030028,43360.0,43357.0,0.48994292]
[1646298745279,0.035028,43360.0,43357.0,0.48994292]
[1646298745928,0.3,43359.0,43357.0,0.48994292]
[1646298746130,0.030028,43358.0,43357.0,0.48994292]
[1646298746327,0.176128,43358.0,43351.0,0.5]
[1646298746527,0.115439,43357.0,43351.0,0.5]
[1646298746728,0.076128,43356.0,43351.0,0.5]
[1646298747629,0.133848,43356.0,43351.0,0.5]
[1646298748027,0.1340024,43356.0,43351.0,0.5]
[1646298749028,0.233848,43356.0,43351.0,0.5]
[1646298749492,0.23400282,43356.0,43348.0,0.557715]
[1646298749694,0.23400282,43356.0,43349.0,0.01455438]
[1646298750093,0.04625482,43356.0,43349.0,0.01455438]
[1646298750298,0.0461,43356.0,43351.0,0.11541]
[1646298750492,0.025,43358.0,43351.0,0.11541]
[1646298750493,0.00015482,43355.0,43352.0,0.01372448]
[1646298751094,0.00615482,43355.0,43352.0,0.01372448]
[1646298751494,0.00615482,43355.0,43353.0,0.5]
[1646298751495,0.006,43355.0,43353.0,0.5]
[1646298751694,0.030028,43354.0,43353.0,0.5]
[1646298751894,0.036028,43355.0,43354.0,0.01057452]
[1646298752297,0.030028,43355.0,43354.0,0.01057452]
[1646298752694,0.030028,43355.0,43354.0,0.5]
[1646298753094,0.030028,43356.0,43354.0,0.5]
[1646298756240,0.02942624,43356.0,43354.0,0.5]
[1646298757268,0.03342624,43356.0,43354.0,0.5]
[1646298757769,0.16748306,43355.0,43354.0,0.5]
[1646298758970,0.029442,43355.0,43354.0,0.5]
[1646298759170,0.029442,43356.0,43354.0,0.5]
[1646298760927,0.029442,43356.0,43354.0,1.0]
[1646298761128,0.034442,43356.0,43354.0,1.0]
[1646298761529,0.03435824,43356.0,43354.0,1.0]
[1646298761728,0.025,43359.0,43354.0,1.0]
[1646298762030,0.03653,43359.0,43354.0,1.0]
[1646298762828,0.025,43359.0,43354.0,1.0]
[1646298763028,0.025,43359.0,43356.0,0.01529063]
[1646298763229,0.025,43359.0,43357.0,0.01470326]
[1646298763428,0.025,43359.0,43354.0,1.0]
[1646298763429,0.025,43359.0,43358.0,0.01425109]
[1646298763630,0.12659668,43359.0,43354.0,0.5]
[1646298763828,0.025,43359.0,43354.0,0.5]
[1646298764029,0.025,43359.0,43354.0,0.67262303]
[1646298764228,0.025,43359.0,43354.0,0.5]
[1646298764877,0.02509088,43359.0,43354.0,0.5]
[1646298765074,0.03009088,43359.0,43354.0,0.5]
[1646298765975,0.03,43359.0,43354.0,0.5]
[1646298766276,0.03016829,43359.0,43354.0,0.5]
[1646298766474,0.02516829,43359.0,43354.0,0.5]
[1646298767075,0.03,43359.0,43354.0,0.5]
[1646298767277,0.03017033,43359.0,43354.0,0.5]
[1646298768336,0.025,43359.0,43354.0,0.5]
[1646298768529,0.02517033,43359.0,43354.0,0.5]
[1646298769530,0.025,43359.0,43354.0,0.5]
[1646298769731,0.02517033,43359.0,43354.0,0.5]
[1646298769933,0.12726496,43358.0,43354.0,0.5]
[1646298772778,0.12726496,43358.0,43354.0,0.557713]
[1646298773180,0.13126496,43358.0,43354.0,0.557713]
[1646298773680,0.13126496,43358.0,43356.0,0.01097474]
[1646298773880,0.13126496,43358.0,43357.0,0.01239204]
[1646298774078,0.13126496,43358.0,43354.0,0.557713]
[1646298774577,0.12726496,43358.0,43354.0,0.557713]
[1646298775080,0.13126496,43358.0,43354.0,0.557713]
[1646298775918,0.13126496,43358.0,43354.0,0.5]
[1646298776120,0.115435,43357.0,43354.0,0.5]
[1646298777724,0.057716,43357.0,43354.0,0.5]
[1646298779800,0.057716,43357.0,43354.0,0.76137898]
[1646298780200,0.22726496,43358.0,43354.0,0.87679798]
[1646298780400,0.12726496,43358.0,43354.0,0.87679798]
[1646298780600,0.00017622,43359.0,43354.0,0.615419]
[1646298781201,0.00017622,43359.0,43357.0,0.21529995]
[1646298781400,0.057703,43365.0,43357.0,0.27300595]
[1646298781801,0.00016717,43360.0,43357.0,0.27291174]
[1646298782702,0.20415838,43359.0,43358.0,0.5]
[1646298785061,0.20915838,43359.0,43358.0,0.5]
[1646298785760,0.20415838,43359.0,43358.0,0.5]
[1646298786972,0.20815838,43359.0,43358.0,0.5]
[1646298787172,0.20815838,43359.0,43358.0,0.4995445]
[1646298788376,0.20415838,43359.0,43358.0,0.4995445]
[1646298788576,0.43455596,43359.0,43358.0,0.4995445]
[1646298788977,0.20415838,43359.0,43358.0,0.4995445]
[1646298789979,0.20415838,43359.0,43358.0,0.9995445]
[1646298791122,0.20815838,43359.0,43358.0,0.9995445]
[1646298792317,0.20415838,43359.0,43358.0,0.9995445]
[1646298797074,0.20815838,43359.0,43358.0,1.4995445]
[1646298798224,0.20415838,43359.0,43358.0,1.4995445]
[1646298799029,0.20815838,43359.0,43358.0,1.4995445]
[1646298800129,0.20815838,43359.0,43358.0,1.61492598]
[1646298800328,0.00015558,43361.0,43358.0,1.61492598]
[1646298800732,0.13870957,43366.0,43358.0,1.61492598]
[1646298800928,0.00015557,43362.0,43359.0,0.115394]
[1646298802000,0.14170957,43366.0,43358.0,1.61492598]
[1646298802001,0.357703,43365.0,43358.0,1.4995445]
[1646298802201,0.00015557,43363.0,43358.0,1.4995445]
[1646298802402,0.39050648,43363.0,43358.0,1.4995445]
[1646298802604,0.00015557,43363.0,43358.0,1.4995445]
[1646298803003,0.1,43364.0,43359.0,0.0595276]
[1646298803202,0.13870957,43366.0,43359.0,0.0595276]
[1646298803203,0.005,43363.0,43359.0,0.0595276]
[1646298803400,0.00515557,43363.0,43359.0,0.0595276]
[1646298804002,0.00515557,43363.0,43359.0,0.1749196]
[1646298804203,0.00515557,43363.0,43361.0,0.01573492]
[1646298804407,0.34725409,43365.0,43361.0,0.01573492]
[1646298804408,0.00216982,43362.0,43361.0,0.01573492]
[1646298805400,0.00216982,43362.0,43360.0,0.5]
[1646298805601,0.13870957,43366.0,43360.0,0.5]
[1646298805826,0.00015557,43364.0,43360.0,0.5]
[1646298806426,0.00015557,43364.0,43363.0,0.5]
[1646298806626,0.00216982,43364.0,43363.0,0.4995442]
[1646298813226,0.00716982,43364.0,43363.0,0.4995442]
[1646298813623,0.00716982,43364.0,43363.0,0.9995442]
[1646298814524,0.00216982,43364.0,43363.0,0.9995442]
[1646298815228,0.00716982,43364.0,43363.0,0.9995442]
[1646298816326,0.00216982,43364.0,43363.0,1.18715165]
[1646298816525,0.00216982,43364.0,43363.0,0.9995442]
[1646298817289,0.00716982,43364.0,43363.0,0.9995442]
[1646298817891,0.00716982,43364.0,43363.0,1.2995442]
[1646298818494,0.13886514,43366.0,43364.0,0.7]
[1646298818690,0.47781321,43373.0,43365.0,0.51593074]
[1646298818991,0.26696693,43373.0,43372.0,0.05765635]
[1646298819590,0.16696693,43373.0,43372.0,0.05765635]
[1646298819791,0.16696693,43373.0,43370.0,0.057683]
[1646298819988,0.16696693,43373.0,43369.0,0.115365]
[1646298819989,0.39407812,43373.0,43369.0,0.115365]
[1646298820191,0.39407812,43373.0,43366.0,0.557691]
[1646298820390,0.39407812,43373.0,43366.0,0.5]
[1646298821060,0.39407812,43373.0,43369.0,0.49517757]
[1646298821260,0.39407812,43373.0,43369.0,0.49413213]
[1646298821458,0.00015567,43372.0,43369.0,0.49413213]
[1646298822261,0.39407812,43373.0,43369.0,0.49413213]
[1646298822664,0.39423379,43373.0,43369.0,0.49413213]
[1646298822862,0.1671226,43373.0,43369.0,0.49413213]
[1646298823464,0.16696693,43373.0,43369.0,0.49413213]
[1646298823865,0.1671226,43373.0,43369.0,0.49413213]
[1646298824686,0.16696693,43373.0,43369.0,0.49413213]
[1646298824887,0.16712247,43373.0,43369.0,0.49413213]
[1646298825486,0.16712247,43373.0,43370.0,0.01223954]
[1646298825688,0.16712247,43373.0,43372.0,0.01495756]
[1646298825988,0.26853313,43373.0,43369.0,0.49413213]
[1646298826191,0.16696693,43373.0,43369.0,0.49413213]
[1646298826792,0.16696693,43373.0,43370.0,0.3]
[1646298827695,0.16696693,43373.0,43371.0,0.05464938]
[1646298831032,0.16696693,43373.0,43371.0,0.35464938]
[1646298831433,0.16696693,43373.0,43371.0,0.05464938]
[1646298835481,0.16696693,43373.0,43370.0,0.5]
[1646298835930,0.16696693,43373.0,43372.0,0.01029069]
[1646298836129,0.16696693,43373.0,43372.0,0.5]
[1646298836529,0.16696693,43373.0,43372.0,0.55468066]
[1646298840579,0.16696693,43373.0,43372.0,0.55457987]
[1646298841281,0.00015555,43375.0,43373.0,1.0]
[1646298841478,0.18421882,43379.0,43374.0,0.8]
[1646298841878,0.00015555,43375.0,43374.0,0.8]
[1646298842578,0.00015555,43375.0,43374.0,1.155471]
[1646298842777,0.01,43379.0,43374.0,0.91532]
[1646298842978,0.00015555,43377.0,43375.0,0.11532314]
[1646298843238,0.00015555,43377.0,43374.0,0.502]
[1646298843839,0.01,43379.0,43374.0,0.502]
[1646298844238,0.13674493,43375.0,43374.0,0.502]
[1646298845040,0.13674493,43375.0,43374.0,0.5]
[1646298845441,0.10156151,43375.0,43374.0,0.5]
[1646298845742,0.10156151,43375.0,43366.0,0.1202]
[1646298845743,0.14766151,43375.0,43366.0,0.6202]
[1646298845944,0.14766151,43375.0,43364.0,0.4153618]
[1646298845945,0.0461,43375.0,43364.0,0.4153618]
[1646298846342,0.0461,43375.0,43365.0,0.26099954]
[1646298846541,0.0461,43375.0,43366.0,0.01131174]
[1646298846542,0.00015555,43372.0,43366.0,0.01131174]
[1646298846741,0.00015555,43372.0,43368.0,0.01106421]
[1646298846977,0.00015555,43372.0,43364.0,0.4153618]
[1646298847178,0.00015555,43372.0,43364.0,0.48527321]
[1646298847578,0.103789,43375.0,43364.0,0.48527321]
[1646298847780,0.00015556,43370.0,43365.0,0.20902666]
[1646298847977,0.00015556,43370.0,43364.0,0.48527321]
[1646298848479,0.00015556,43370.0,43364.0,0.4153618]
[1646298848677,0.103789,43375.0,43368.0,0.17262272]
[1646298849078,0.00015556,43369.0,43368.0,0.17262272]
[1646298849278,0.00015556,43369.0,43364.0,0.4153618]
[1646298850081,0.103789,43375.0,43364.0,0.4153618]
[1646298850283,0.00015556,43369.0,43368.0,0.20948083]
[1646298850482,0.00015556,43369.0,43364.0,0.4153618]
[1646298851127,0.103789,43375.0,43364.0,0.4153618]
[1646298851523,0.00015556,43369.0,43366.0,0.21115053]
[1646298852324,0.103789,43375.0,43366.0,0.21115053]
[1646298852527,0.103789,43375.0,43367.0,0.3]
[1646298852528,0.00015556,43370.0,43367.0,0.3]
[1646298852726,0.00015556,43370.0,43363.0,0.5572282]
[1646298852926,0.00015556,43370.0,43363.0,0.4995442]
[1646298852927,0.103796,43369.0,43363.0,0.4995442]
[1646298853523,0.128796,43369.0,43363.0,0.49804689]
[1646298853726,0.128796,43369.0,43364.0,0.16744729]
[1646298853925,0.00015556,43368.0,43364.0,0.16744729]
[1646298854681,0.025,43369.0,43364.0,0.16744729]
[1646298855082,0.00015556,43368.0,43364.0,0.16744729]
[1646298855882,0.025,43369.0,43364.0,0.16744729]
[1646298856284,0.00015556,43368.0,43364.0,0.16744729]
[1646298857084,0.025,43369.0,43363.0,0.49804689]
[1646298857483,0.00015556,43368.0,43364.0,0.01090479]
[1646298857983,0.00015556,43368.0,43366.0,0.19293114]
[1646298858223,0.00015556,43368.0,43366.0,0.20797124]
[1646298858423,0.025,43369.0,43366.0,0.20797124]
[1646298858624,0.02515556,43369.0,43366.0,0.0150401]
[1646298858829,0.02515556,43369.0,43363.0,0.49804689]
[1646298858830,0.02515556,43369.0,43368.0,0.01320284]
[1646298859024,0.02515556,43369.0,43364.0,0.3]
[1646298859626,0.025,43369.0,43364.0,0.3]
[1646298859825,0.02515556,43369.0,43364.0,0.3]
[1646298860829,0.025,43369.0,43364.0,0.3]
[1646298861030,0.02515556,43369.0,43364.0,0.3]
[1646298861439,0.02515556,43369.0,43366.0,0.2199515]
[1646298862077,0.025,43369.0,43364.0,0.3]
[1646298863076,0.08269,43374.0,43369.0,0.15495662]
[1646298863276,0.10156151,43370.0,43369.0,0.15495662]
[1646298863777,0.10156151,43370.0,43365.0,0.057687]
[1646298863982,0.08869,43374.0,43365.0,0.057687]
[1646298864578,0.00015571,43372.0,43365.0,0.057687]
[1646298865376,0.00015571,43372.0,43364.0,0.3]
[1646298865576,0.08269,43374.0,43364.0,0.3]
[1646298865822,0.00015571,43371.0,43364.0,0.3]
[1646298866022,0.00015571,43371.0,43365.0,0.16237382]
[1646298866423,0.00015571,43371.0,43366.0,0.057688]
[1646298866828,0.08269,43374.0,43366.0,0.057688]
[1646298867125,0.0001557,43371.0,43368.0,0.05844247]
[1646298867527,0.0001557,43371.0,43365.0,0.14195414]
[1646298867930,0.057695,43370.0,43365.0,0.14195414]
[1646298868131,0.00015578,43370.0,43365.0,0.14195414]
[1646298868529,0.00015578,43370.0,43367.0,0.06489631]
[1646298869132,0.025,43374.0,43368.0,0.0115758]
[1646298869332,0.00015578,43371.0,43369.0,0.0125842]
[1646298869578,0.10156151,43370.0,43365.0,0.14195414]
[1646298869778,0.00015578,43371.0,43365.0,0.14195414]
[1646298870478,0.025,43374.0,43365.0,0.14195414]
[1646298870681,0.00015578,43370.0,43365.0,0.14195414]
[1646298871081,0.00015578,43370.0,43365.0,0.19734801]
[1646298871279,0.00015578,43370.0,43365.0,0.14195414]
[1646298871478,0.057694,43371.0,43365.0,0.14195414]
[1646298871880,0.00015609,43370.0,43365.0,0.14195414]
[1646298872281,0.00015609,43370.0,43363.0,0.49804689]
[1646298872879,0.1,43373.0,43363.0,0.49804689]
[1646298873079,0.00015609,43369.0,43363.0,0.49804689]
[1646298873936,0.057693,43371.0,43363.0,0.49804689]
[1646298874239,0.00015609,43368.0,43363.0,0.49804689]
[1646298874537,0.00015609,43368.0,43365.0,0.19697117]
[1646298874936,0.00015609,43368.0,43363.0,0.49804689]
[1646298875137,0.057693,43371.0,43363.0,0.49804689]
[1646298875337,0.003,43368.0,43363.0,0.49804689]
[1646298875937,0.003,43368.0,43366.0,0.18895938]
[1646298877371,0.008,43368.0,43366.0,0.18895938]
[1646298878172,0.008,43368.0,43363.0,0.79804689]
[1646298878972,0.00815605,43368.0,43363.0,0.79804689]
[1646298879176,0.00015605,43368.0,43363.0,0.79804689]
[1646298879377,0.00015605,43368.0,43364.0,0.34471908]
[1646298879776,0.00015605,43368.0,43365.0,0.01406356]
[1646298879974,0.01852,43373.0,43366.0,0.01524514]
[1646298880176,0.007,43373.0,43371.0,0.06778436]
[1646298880380,0.007,43373.0,43369.0,0.01539388]
[1646298880580,0.025,43374.0,43370.0,0.0145642]
[1646298880842,0.025,43374.0,43364.0,0.28703453]
[1646298881342,0.03,43374.0,43368.0,0.06777395]
[1646298881541,0.00015605,43371.0,43368.0,0.06777395]
[1646298881945,0.00015605,43371.0,43364.0,0.28703453]
[1646298882344,0.03,43374.0,43364.0,0.28703453]
[1646298882544,0.025,43374.0,43364.0,0.28703453]
[1646298882744,0.00015616,43370.0,43364.0,0.28703453]
[1646298883746,0.063689,43375.0,43367.0,0.06828207]
[1646298884046,0.00015617,43369.0,43364.0,0.28703453]
[1646298884873,0.057689,43375.0,43364.0,0.28703453]
[1646298885075,0.00015617,43369.0,43366.0,0.06560703]
[1646298885676,0.00015617,43369.0,43366.0,0.12329103]
[1646298886077,0.006,43374.0,43366.0,0.06560703]
[1646298886275,0.00015604,43370.0,43367.0,0.3]
[1646298887281,0.01152,43377.0,43367.0,0.3]
[1646298887478,0.004,43370.0,43368.0,0.22800452]
[1646298887679,0.004,43370.0,43368.0,0.057685]
[1646298887880,0.004,43370.0,43367.0,0.3]
[1646298888534,0.01152,43376.0,43367.0,0.3]
[1646298888731,0.00015603,43371.0,43367.0,0.3]
[1646298889533,0.00015603,43371.0,43367.0,0.357684]
[1646298889837,0.00015605,43371.0,43367.0,0.3]
[1646298890433,0.00015605,43371.0,43368.0,0.05796467]
[1646298890934,0.069206,43377.0,43374.0,0.1930643]
[1646298891133,0.10156151,43375.0,43374.0,0.1930643]
[1646298891334,0.10156151,43375.0,43374.0,0.2086088]
[1646298894378,0.10156151,43375.0,43374.0,0.0155445]
[1646298894578,0.10156151,43375.0,43368.0,0.057685]
[1646298894777,0.057687,43376.0,43368.0,0.057685]
[1646298895178,0.057687,43376.0,43367.0,0.3]
[1646298895381,0.061687,43376.0,43367.0,0.3]
[1646298895833,0.00015616,43374.0,43369.0,0.21612478]
[1646298896835,0.057687,43376.0,43369.0,0.21612478]
[1646298897136,0.00015603,43374.0,43369.0,0.21612478]
[1646298897933,0.0461,43377.0,43369.0,0.21612478]
[1646298898334,0.00015603,43374.0,43369.0,0.21612478]
[1646298898944,0.00015603,43374.0,43370.0,0.655471]
[1646298899135,0.01,43379.0,43370.0,0.655471]
[1646298899136,0.01,43379.0,43370.0,0.770817]
[1646298899578,0.00015603,43374.0,43370.0,0.415346]
[1646298899978,0.00015603,43374.0,43371.0,0.355471]
[1646298900378,0.01,43379.0,43370.0,0.415346]
[1646298900580,0.00015604,43375.0,43370.0,0.415346]
[1646298900779,0.00015604,43375.0,43371.0,0.355471]
[1646298900982,0.00015604,43375.0,43372.0,0.057671]
[1646298901180,0.00015604,43375.0,43373.0,0.3]
[1646298901379,0.24746454,43374.0,43373.0,0.3]
[1646298901580,0.24746454,43374.0,43372.0,0.057671]
[1646298901581,0.01,43379.0,43372.0,0.057671]
[1646298901780,0.01,43379.0,43369.0,0.3]
[1646298901979,0.00015604,43376.0,43369.0,0.3]
[1646298902582,0.00015604,43376.0,43370.0,0.057678]
[1646298902786,0.2690778,43375.0,43371.0,0.1639153]
[1646298902981,0.00015604,43375.0,43371.0,0.1639153]
[1646298904024,0.23586597,43378.0,43371.0,0.16680853]
[1646298904225,0.00015604,43375.0,43371.0,0.16680853]
[1646298904624,0.00015604,43375.0,43372.0,0.01008439]
[1646298905225,0.23586597,43378.0,43372.0,0.01008439]
[1646298905430,0.00015604,43376.0,43372.0,0.01008439]
[1646298906026,0.00015604,43376.0,43372.0,0.01108439]
[1646298906425,0.23586597,43378.0,43372.0,0.01108439]
[1646298906626,0.00015604,43376.0,43372.0,0.01108439]
[1646298907292,0.00015604,43376.0,43372.0,0.01008439]
[1646298907486,0.00015604,43376.0,43371.0,0.16302501]
[1646298907689,0.23586597,43378.0,43371.0,0.16302501]
[1646298907891,0.00015604,43376.0,43372.0,0.01280951]
[1646298908091,0.00015604,43376.0,43372.0,0.01380951]
[1646298908888,0.01,43379.0,43372.0,0.01380951]
[1646298909090,0.00015604,43376.0,43372.0,0.01380951]
[1646298909291,0.00015604,43376.0,43372.0,0.01280951]
[1646298909490,0.00015604,43376.0,43374.0,0.10311425]
[1646298910090,0.26689432,43377.0,43375.0,0.057677]
[1646298910291,0.26705036,43377.0,43376.0,0.01483104]
[1646298910735,0.26705036,43377.0,43375.0,0.057677]
[1646298911134,0.26689432,43377.0,43375.0,0.057677]
[1646298911634,0.00015603,43378.0,43375.0,0.057677]
[1646298912435,0.01,43379.0,43375.0,0.057677]
[1646298912635,0.01015603,43379.0,43375.0,0.057677]
[1646298913035,0.24681721,43379.0,43375.0,0.057677]
[1646298913238,0.01015603,43379.0,43375.0,0.057677]
[1646298913636,0.01,43379.0,43375.0,0.057677]
[1646298913837,0.01015603,43379.0,43375.0,0.057677]
[1646298914480,0.01015603,43379.0,43375.0,0.357677]
[1646298914681,0.01015603,43379.0,43377.0,0.09083172]
[1646298914881,0.01,43379.0,43377.0,0.09083172]
[1646298915184,0.01015603,43379.0,43377.0,0.09083172]
[1646298915986,0.01,43379.0,43377.0,0.09083172]
[1646298916185,0.28310403,43378.0,43377.0,0.09083172]
[1646298916986,0.28483479,43378.0,43377.0,0.09083172]
[1646298920140,0.33093479,43378.0,43377.0,0.09083172]
[1646298920342,0.83539953,43378.0,43377.0,0.09083172]
[1646298920943,0.44245479,43378.0,43377.0,0.09083172]
[1646298921992,0.44245479,43378.0,43377.0,0.00083172]
[1646298922191,0.057689,43374.0,43372.0,0.0104279]
[1646298922392,0.10327003,43373.0,43372.0,0.0104279]
[1646298922592,0.10327003,43373.0,43371.0,0.00083172]
[1646298922793,0.10327003,43372.0,43371.0,0.00083172]
[1646298924399,0.17066565,43372.0,43371.0,0.00083172]
[1646298924595,0.14765565,43372.0,43371.0,0.00083172]
[1646298924792,0.0461,43372.0,43371.0,0.00083172]
[1646298924993,0.0478312,43372.0,43371.0,0.00083172]
[1646298925393,0.04783106,43372.0,43371.0,0.00083172]
[1646298930081,0.05183106,43372.0,43371.0,0.00083172]
[1646298931282,0.04783106,43372.0,43371.0,0.00083172]
[1646298932083,0.05183106,43372.0,43371.0,0.00083172]
[1646298932684,0.07484106,43372.0,43371.0,0.00083172]
[1646298933331,0.07084106,43372.0,43371.0,0.00083172]
[1646298935833,0.04783106,43372.0,43371.0,0.00083172]
[1646298936232,0.07084106,43372.0,43371.0,0.00083172]
[1646298936437,0.04783106,43372.0,43371.0,0.00083172]
[1646298939883,0.07084106,43372.0,43371.0,0.00083172]
[1646298940083,0.07584106,43372.0,43371.0,0.00083172]
[1646298940483,0.05283106,43372.0,43371.0,0.00083172]
[1646298940751,0.07584106,43372.0,43371.0,0.00083172]
[1646298941153,0.4687858,43372.0,43371.0,0.00083172]
[1646298941353,0.5637858,43372.0,43371.0,0.00083172]
[1646298944053,0.17084106,43372.0,43371.0,0.00083172]
[1646298944253,0.07084106,43372.0,43371.0,0.00083172]
[1646298946282,0.04783106,43372.0,43371.0,0.00083172]
[1646298946481,0.00173106,43372.0,43371.0,0.00083172]
[1646298947080,0.00173106,43372.0,43371.0,0.00077012]
[1646298947281,0.00173106,43372.0,43364.0,0.3]
[1646298947481,0.00173118,43368.0,43364.0,0.01188318]
[1646298947681,0.00173118,43365.0,43364.0,0.01188318]
[1646298948081,0.00173118,43365.0,43364.0,0.1841292]
[1646298948342,0.00173118,43365.0,43364.0,0.17224602]
[1646298948741,0.057702,43366.0,43364.0,0.17224602]
[1646298949745,0.057702,43366.0,43357.0,0.00926]
[1646298949746,0.2,43362.0,43357.0,0.00926]
[1646298950243,0.2,43362.0,43353.0,0.35544]
[1646298950743,0.2,43362.0,43357.0,0.21188172]
[1646298950945,0.057703,43360.0,43358.0,0.51596127]
[1646298951243,0.057703,43360.0,43359.0,0.65544]
[1646298951244,0.05787562,43360.0,43359.0,0.65544]
[1646298951644,0.00017262,43360.0,43359.0,0.309232]
[1646298952003,0.257702,43362.0,43359.0,0.309232]
[1646298952194,0.25787462,43362.0,43360.0,0.355442]
[1646298952495,0.25787462,43362.0,43358.0,0.355438]
[1646298952697,0.25787462,43362.0,43360.0,0.00077012]
[1646298952894,0.25787462,43362.0,43361.0,0.355438]
[1646298953293,0.257702,43362.0,43361.0,0.355438]
[1646298954294,0.257702,43362.0,43358.0,0.355438]
[1646298955958,0.25787064,43362.0,43358.0,0.355438]
[1646298956156,0.26287064,43362.0,43359.0,0.355438]
[1646298956357,0.26287064,43362.0,43352.0,0.01152]
[1646298956556,0.057706,43359.0,43353.0,0.355438]
[1646298957155,0.05787464,43359.0,43356.0,0.2008056]
[1646298957359,0.11557164,43359.0,43357.0,0.355438]
[1646298958158,0.115403,43359.0,43357.0,0.355438]
[1646298959359,0.115403,43359.0,43357.0,0.009204]
[1646298959788,0.115403,43359.0,43358.0,0.355451]
[1646298960191,0.120403,43359.0,43358.0,0.355451]
[1646298961393,0.37835739,43359.0,43358.0,0.355451]
[1646298961592,0.115403,43359.0,43358.0,0.355451]
[1646298962197,0.119403,43359.0,43358.0,0.355451]
[1646298963434,0.115403,43359.0,43358.0,0.355451]
[1646298964233,0.119403,43359.0,43358.0,0.355451]
[1646298965435,0.115403,43359.0,43358.0,0.355451]
[1646298966535,0.110403,43359.0,43358.0,0.355451]
[1646298966734,0.114403,43359.0,43358.0,0.355451]
[1646298966984,0.114403,43359.0,43356.0,0.243514]
[1646298967985,0.110403,43359.0,43356.0,0.243514]
[1646298968186,0.113403,43359.0,43356.0,0.243514]
[1646298969392,0.110403,43359.0,43356.0,0.243514]
[1646298970193,0.3,43358.0,43352.0,0.01152]
[1646298970834,0.00046174,43354.0,43352.0,0.01152]
[1646298971035,0.00046174,43353.0,43352.0,0.01152]
[1646298971237,0.00046174,43353.0,43352.0,0.255058]
[1646298971938,0.057712,43355.0,43352.0,0.01152]
[1646298972137,0.001,43353.0,43352.0,0.01152]
[1646298972337,0.001,43353.0,43352.0,0.255064]
[1646298972536,0.116422,43353.0,43351.0,0.243552]
[1646298973438,0.115422,43353.0,43351.0,0.243552]
[1646298974143,0.116422,43353.0,43351.0,0.243552]
[1646298975385,0.116422,43353.0,43351.0,0.45113508]
[1646298975591,0.115422,43353.0,43351.0,0.243552]
[1646298976185,0.115422,43353.0,43351.0,0.246552]
[1646298976687,0.115422,43353.0,43352.0,0.41110602]
[1646298976886,0.115422,43353.0,43352.0,0.243545]
[1646298978233,0.117422,43353.0,43352.0,0.243545]
[1646298979231,0.117422,43353.0,43351.0,0.24355]
[1646298979431,0.115422,43353.0,43351.0,0.24355]
[1646298980230,0.115422,43353.0,43351.0,0.24555]
[1646298980430,0.115422,43353.0,43351.0,0.40991877]
[1646298980630,0.115422,43353.0,43351.0,0.24555]
[1646298981435,0.115422,43353.0,43351.0,0.24355]
[1646298981633,0.115422,43353.0,43351.0,0.243551]
[1646298982378,0.115422,43353.0,43351.0,0.002]
[1646298983076,0.115422,43353.0,43352.0,0.243545]
[1646298983479,0.115422,43353.0,43350.0,0.17586465]
[1646298983677,0.115422,43353.0,43351.0,0.243552]
[1646298984080,0.115422,43353.0,43350.0,0.17586465]
[1646298984281,0.117422,43353.0,43350.0,0.17586465]
[1646298985277,0.117422,43353.0,43351.0,0.243551]
[1646298985478,0.115422,43353.0,43351.0,0.243551]